{"text_format":"1","workbook":"xlsx","n_sheets":9,"sheets":["READ ME 1ST","1. Signature Page","2. Contact Information ","3. Private School Services","4.  Fund Code 186 Narrative","5. Fund Code 186 Budget","dataLookupValues","dataDistrictList","Dropdowns"],"not_rendered":{"charts":0,"images":0,"macros":1,"external_links":0,"defined_names":72,"comments":0,"pivot_tables":0},"unopened":[],"bounds":{"document_bytes":16777216,"sheet_cells":100000,"rows_first":2000,"rows_last":500,"rows_between":2000,"halvings":0,"cell_chars":16384,"cell_head_chars":4096},"cells_cut":0,"cells_raw":0,"read":"whole","date_system":"1900"}

{"sheet":"READ ME 1ST","index":0,"n_rows":31,"n_cols":2,"rows_kept":31,"cut":false,"hidden":false,"merged":[[27,1,27,12],[1,1,1,11],[2,1,2,11],[3,1,3,12],[4,1,4,11],[5,1,13,12],[14,1,14,12],[15,1,15,12],[16,1,16,12],[17,1,24,12],[25,1,25,12],[26,1,26,12],[43,2,43,4],[28,1,28,12],[29,1,29,12],[30,1,30,12],[31,1,31,11],[32,1,32,11],[35,2,35,4],[36,2,36,4],[37,2,37,4],[39,1,39,4],[40,1,40,4],[41,2,41,4],[56,2,56,4],[57,2,57,4],[47,2,47,4],[51,1,51,4],[52,2,52,4],[53,2,53,4],[54,2,54,4],[55,2,55,4]]}
[]
[null,"Massachusetts Department of Elementary & Secondary Education"]
[null,"FY19 Consolidated Federal ESEA Programs Application Workbook, Addendum for Title III, Part A, Immigrant Children and Youth (Fund Code 186)"]
[null,"Overview  "]
[null,"This Excel workbook contains the FY18 Title I grant application forms that a school district must submit to the Massachusetts Department of Elementary and Secondary Education. Information about the FY18 Title I grant can be found at http://www.doe.mass.edu/grants/."]
[null,"\nThis addendum supplements the consolidated application for subgrants for any combination of the federal programs authorized by the Elementary and Secondary Education Act (ESEA), as most recently reauthorized by the Every Student Succeeds Act (2015) (ESSA) (Titles I, Parts A & D, Title II, Part A; Title III, Part A; and Title IV, Part A).  Specifically, this addendum is for eligible districts applying for:                                                                       \n                                                       • Title III, Part A, Immigrant Children and Youth (Fund Code 186)\n\nESSA defines \"immigrant child or youth\" as an individual who 1) is aged 3 to 21 years, 2) was not born in any state, and 3) has not been attending one or more schools in any one or more states for more than 3 full academic years.  For the purposes of this definition, a student's legal status is irrelevant, and the District of Columbia and Puerto Rico are considered states.\n                                                                                                   \nYou may notice that some requirements of past applications have been omitted or are requested in a different way, which is permitted by ESSA to reduce burden to districts when applying for grants.  However, all districts are still required to meet all statutory requirements for any program for which they receive funds.  If you have questions about these requirements, please refer to our Federal Grant Programs web pages and/or contact the Federal Programs Specialist assigned to your district for guidance.\n\n"]
[]
[]
[]
[]
[]
[]
[]
[]
[null,"First Step:  Saving the File"]
[null,"Save this file to your computer (Important: ensure macros are enabled).  Rename the file by replacing the words 'leacode' in the file name with your 4-digit district code. For example, Abington (0001) would rename the file as 'FY19CAIMM-0001.xlsm'. Do not change the filename except for your district's 4-digit code. Users of Macintosh computers must save as a macro-enabled file (with an .xlsm extension) for the workbook to function properly."]
[null,"Tips for Completing this Addendum to the Consolidated Application"]
[null,"  \n Workflow and printing:  \n    • Complete each tab in the order that they are numbered unless instructed otherwise.  \n\n    • Complete the steps on each tab in the order that they are numbered (for example, on Tab 3, begin with Step 3.1, then complete 3.2).\n      Note that some steps may not be required for your district and may be skipped.\n\n   •  The budget worksheet appearing after the Title III, Immigrant subgrant narrative must be completed. It mirrors the budget entry \n     page in EdGrants with the addition of checkboxes to indicate whether funds are used for private school services.  This budget \n     worksheet is mandatory and in addition to entering budget information in EdGrants. \n\n   •  This workbook is structured to be used in electronic format.  However, you can print a copy using Excel's print preview functions \n       to set the appearance and paper orientation to best fit your completed application.  \n   \n  Color-coding and cell features:\n   •  Those cells that appear light yellow require districts to input information.  Text may be pasted into these cells as long as\n       the source of the information has no excel formulas.  \n\n   •  Those cells that appear light gray will automatically populate based on information districts supply on the application or from\n       preloaded data already reported to the Department of Elementary and Secondary Education (DESE) (for example, SIMS data).   \n       Do not cut and paste information from other pages or sources into gray cells! \n\n   •  Those cells that appear in light orange offer a dropdown menu from which districts can choose a supplied response or \n       \"other,\" which requires districts to supply a brief description where indicated.   Do not cut and paste information from other pages \n       or sources into orange cells!  \n\n   •  Throughout the tabs of this application you will find instruction boxes (gray), tip boxes (pink) to help avoid common mistakes, \n       and resource boxes (tan) that include links to materials outside the application with more detailed, grant-related information.\n"]
[]
[]
[]
[]
[]
[]
[]
[null,"\n    Last Steps:\n   •  Signature Page (Tab 1) :  Once the application has been completed, print, sign, date (using date of submission), scan and upload \n      a signed copy of the signature page with your district's EdGrants submissions for Fund Code 186.   We cannot approve\n      any grant without an uploaded, signed, and properly dated signature page!\n \n   •  A completed addendum to your consolidated workbook (this workbook) should be submitted as an attachment in EdGrants with \n      the district's submission for Title III, Part A Immigrant Children and Youth (FC 186) subgrant submission. "]
[null,"Submit this FY19 Addendum to the Consolidated Application  (Fund Code 186) via EdGrants Front Office web page"]
[null,"\nEdGrants Submission Information:\nMost districts/applicants already have designated control users in EdGrants: Front Office, who have access to submit grant applications as well as to make payment requests.  Each district/applicant needs to ensure that it has an authorized control user prior to grant submission.  If a district waits until its grant submission is ready to submit before inquiring about a new user name/login, grant submissions may be delayed several business days waiting for control user set-up.  Please review the EdGrants Security Controls documents and/or contact DESE's Grants Management Office, 781-338-6595 or EdGrants@doe.mass.edu, regarding assigning your EdGrants: Front Office control users.  "]
[null,"The district/applicant control users will register each grant opportunity, create each grant project and enter contact information, budget, and required attachments in EdGrants. All districts' business offices have been contacted with information regarding training.  If you are unsure of who in your office is a control user, please contact your business office. "]
[null,"Applications are due by March 14, 2019"]
[null,"NOTE ON SUBMISSION TIMELINE: \n\n    • The start date for your Fund Code 186 grant is the date on which the district submits substantially approvable information and budget for this grant.  \n       For example, if the completed addendum to the consolidated ESSA application is submitted on March 5, 2019 and all grant information is substantially \n       approvable, the start date for this grant will be March 5.  \n    •  Expenses incurred prior to approval of a district's consolidated application and start date(s) are not payable with grant funds!\n    •  Responding quickly to requests for information can facilitate approval of your grant application.  \n    •  Grant payment notices will be available in EdGrants after the grant application has been approved and processed.\n"]

{"sheet":"1. Signature Page","index":1,"n_rows":32,"n_cols":18,"rows_kept":32,"cut":false,"hidden":false,"merged":[[11,6,11,12],[1,2,1,9],[1,18,1,20],[2,2,3,20],[5,2,5,20],[6,2,6,20],[12,6,12,12],[18,2,19,20],[21,2,21,5],[21,6,21,11],[21,13,21,14],[21,15,21,19],[31,2,31,20],[22,2,22,5],[22,6,22,11],[22,13,22,14],[22,15,22,19],[26,2,28,4],[26,5,26,9],[26,10,26,16],[26,17,26,20],[27,5,28,9],[27,10,27,13],[27,14,27,16],[27,17,28,20],[28,10,28,13],[28,14,28,16]]}
[]
[]
[null,null,"Massachusetts Department of Elementary and Secondary Education\nSTANDARD CONTRACT FORM AND APPLICATION FOR PROGRAM GRANTS"]
[]
[]
[null,null,"UPLOAD A SCANNED, SIGNED COPY OF THIS PAGE WITH THE DATE OF SUBMISSION TO EDGRANTS WITH THE BUDGET "]
[null,null,"District staff with the role of “control user” in EdGrants have been provided user log-in names and passwords and have been trained to submit a grant application via EdGrants. Provide all required application materials to your district control user with access to EdGrants to submit budgets and attachments  for each fund code for which the district is applying.                                                              \n                 Applications are due by March 14, 2019"]
[]
[]
[null,null,null,null,"District Name:",null,null,null,null,null,null,null,null,"Code:",null,{"$f":"valorg4code","v":"Org "}]
[]
[null,null,null,null,"Address: ",null,{"$f":"valaddr1","v":"Address 1"},null,null,null,null,null,null,"DESE Federal Grant Liaison",null,{"$f":"valname","v":"Liaison's Name"}]
[null,null,null,null,null,null,{"$f":"valCtystzip","v":"Town, State Zip"},null,null,null,null,null,null,"Phone number:",null,{"$f":"valphonenum","v":"Liaison's Number"}]
[null,null,null,null,null,null,null,null,null,null,null,null,null,"Email:",null,{"$f":"valemail","v":"Liaison's Email"}]
[]
[]
[null,null,null,null,null,null,null,null,null,null,null,null,null,"`"]
[]
[null,null,"I CERTIFY THAT THE INFORMATION CONTAINED IN THIS APPLICATION IS CORRECT AND COMPLETE; THAT THE APPLICANT AGENCY HAS AUTHORIZED ME, AS ITS REPRESENTATIVE, TO FILE THIS APPLICATION; AND THAT I UNDERSTAND THAT FOR ANY FUNDS RECEIVED THROUGH THIS APPLICATION THE AGENCY AGREES TO COMPLY WITH ALL APPLICABLE STATE AND FEDERAL GRANT REQUIREMENTS COVERING BOTH THE PROGRAMMATIC AND FISCAL ADMINISTRATION OF GRANT FUNDS."]
[]
[]
[null,null,"AUTHORIZED SIGNATURE:",null,null,null,null,null,null,null,null,null,null,"TITLE:"]
[null,null,"PRINTED NAME:",null,null,null,null,null,null,null,null,null,null,"SUBMISSION DATE:"]
[]
[]
[]
[null,null,"FY2019 \nAllocation",null,null,"FEDERALGRANT",null,null,null,null,"PROJECT DURATION",null,null,null,null,null,null,"TOTAL ALLOCATION"]
[null,null,null,null,null,"Title III, Part A\nFund Code 186",null,null,null,null,"FROM",null,null,null,"TO",null,null,{"$f":"valAllocation","v":"FC 186 Allocation"}]
[null,null,null,null,null,null,null,null,null,null,"UPON APPROVAL",null,null,null,"6/30/2019"]
[]
[]
[null,null,"UPLOAD A SCANNED, SIGNED COPY OF THIS PAGE WITH THE DATE OF SUBMISSION TO EDGRANTS WITH THE BUDGET FOR EACH FUND CODE\nBY March 14, 2019"]

{"sheet":"2. Contact Information ","index":2,"n_rows":8,"n_cols":2,"rows_kept":8,"cut":false,"hidden":false,"merged":[[6,2,6,11],[7,2,7,11],[1,1,1,3],[2,1,2,11],[2,13,4,17],[3,1,3,11],[4,1,4,3],[4,4,4,11],[5,1,5,2],[5,3,5,11]]}
[]
[null,{"$f":"valDistrName & \" (\"&valorg4code&\")\"","v":"Org Name (Org )"}]
[null,"District Contact Information by Program\nPlease provide information for primary district contact for each program"]
[null,"Title III, Part A, Immigrant Children and Youth (Fund Code 186)"]
[null,"Name of Primary Contact:"]
[null,"Title:"]
[null,"Phone:"]
[null,"Email:"]

{"sheet":"3. Private School Services","index":3,"n_rows":143,"n_cols":11,"rows_kept":143,"cut":false,"hidden":false,"merged":[[28,2,28,6],[14,2,15,2],[14,3,15,3],[26,2,26,6],[17,2,17,7],[20,2,20,7],[23,2,23,4],[18,2,18,7],[19,2,19,7],[1,2,1,6],[2,2,2,11],[4,2,4,11],[12,2,12,4],[15,8,16,8],[9,2,9,4],[134,2,134,4],[136,2,136,9],[139,2,139,3],[142,2,142,3],[139,4,139,10],[140,2,140,10],[142,4,142,10],[134,10,135,10],[138,2,138,11],[51,8,52,12],[45,8,50,12],[31,8,31,12],[32,8,37,12],[38,8,40,12],[41,8,42,12],[43,8,44,12]]}
[]
[null,null,{"$f":"valDistrName & \" (\"&valorg4code&\")\"","v":"Org Name (Org )"}]
[null,null,"Non-Profit Private School Participation Worksheets"]
[]
[null,null,"ESSA requires the equitable participation of students and educators in private, non-profit schools for federally funded programs and services, including Title III, Part A, Immigrant Children and Youth (Fund Code 186). The public school district is required to have \"timely and meaningful consultation\" with private school officials regarding the participation of private school students and educators in ESSA-funded programs and services. The public school district is responsible for providing equitable services and must retain control of the federal funds used to provide such services. Therefore, equitable services are provided by either an employee of the district or through a contract by the district with an individual, association, agency, or organization. Reimbursement to participating private schools is not allowable."]
[]
[null,null,"Resources:"]
[null,null,"Private School Equitable Services under ESSA"]
[null,null,"Consolidated Affirmation of Consultation"]
[null,null,"DESE's ombudsman for equitable services for private schools is Russ Fleming, who can be reached at ESEAequitableservices@doe.mass.edu or 781-338-6259."]
[]
[]
[null,null,"Step 3.1\nTotal enrollment of immigrant students per October 2018 SIMS data and your district's Fund Code 186 allocation will prepopulate. Once you have entered all data for participating private school students, the total reservation for services for private school immigrant students will populate automatically."]
[]
[null,null,"District immigrant enrollment,October 2018 (SIMS)",{"$f":"IFERROR(valImmigrantCount, \" \")","v":" "}]
[null,null,null,null,null,null,null,null,"Title III, Part A\nImmigrant Children and Youth"]
[]
[null,null,"Total district allocation for Fund Code 186 ",null,null,null,null,null,{"$f":"valAllocation","v":"FC 186 Allocation"}]
[null,null,"Amount reserved by district for administrative costs"]
[null,null,"Amount available after subtracting administrative costs",null,null,null,null,null,{"$f":"IFERROR(I18-I19,\" \")","v":" "}]
[null,null,"Total amount that must be reserved for equitable services.  See below for allocations for each private school.",null,null,null,null,null,{"$f":"IF(G132>0, G132, \" \")","v":" "}]
[]
[]
[null,null,"Step 3.2 \nComplete worksheet in each section for individual private schools for each federal program."]
[]
[]
[null,null,"Titles III, Part A:  Immigrant Students and Youth (Fund Code 186)"]
[]
[null,null,"Title III, Part A:  Private Schools Serving Eligible Children Residing in District"]
[null,null,"\n\nList private schools located within district boundaries      ","Will this Private School Participate in Title III, Part A, Fund Code 186?\n(Yes or No)","Total Number of Immigrant Students Enrolled in Private School\n(not including preschool students)","Title III, Part A\n(Fund Code 186): \nAmount Per Pupil","Title III, Part A (Fund Code 186): Total Allocation for Private School Services, by School"]
[null,null,"A","B","C","D","E"]
[null,null,null,"Select One",null,{"$f":"IF(D32=\"Yes\",IFERROR($I$20/($D$15+$G$133),0), 0)","v":0},{"$f":"IFERROR(F32*E32, 0)","v":0},null,"Instructions:"]
[null,null,null,"Select One",null,{"$f":"IF(D33=\"Yes\",IFERROR($I$20/($D$15+$G$133),0), 0)","v":0},{"$f":"IFERROR(F33*E33, 0)","v":0},null,"Column A:  List the private schools located in the district boundaries and the number of immigrant students enrolled in each (see \"TIP\" for definition of immigrant children and youth). The list represents the private schools that have been contacted regarding eligibility and participation in the district’s  Title III, Part A immigrant programs. Indicate whether each listed school has chosen to participate by selecting from the drop-down menu."]
[null,null,null,"Select One",null,0,0]
[null,null,null,"Select One",null,0,0]
[null,null,null,"Select One",null,0,0]
[null,null,null,"Select One",null,0,0]
[null,null,null,"Select One",null,0,0]
[null,null,null,"Select One",null,0,0,null,"Column B: Indicate whether the private school has elected to participate in the program identified in the column heading (yes or no)."]
[null,null,null,"Select One",null,0,0]
[null,null,null,"Select One",null,0,0]
[null,null,null,"Select One",null,0,0,null,"Column C: Indicate the number of immigrant students attending the listed private school."]
[null,null,null,"Select One",null,0,0]
[null,null,null,"Select One",null,0,0,null,"Column D: This column will automatically populate based on your Title III, Part A Fund Code 186 funding after subtracting administrative expenses."]
[null,null,null,"Select One",null,0,0]
[null,null,null,"Select One",null,0,0,null,"Column E:  This column will automatically populate based on the number of eligible students for this for each program (both district and private school).  Because the figures are reported in whole dollars, you might notice some discrepancies between per-pupil amounts and total allocated per school due to rounding issues -- rely on the total allocation by school for funding private school services."]
[null,null,null,"Select One",null,0,0]
[null,null,null,"Select One",null,0,0]
[null,null,null,"Select One",null,0,0]
[null,null,null,"Select One",null,0,0]
[null,null,null,"Select One",null,0,0]
[null,null,null,"Select One",null,0,0,null,"Responses to questions in Step 3.3 are required only for those districts that have eligible private schools choosing to participate in Fund Code 186 services."]
[null,null,null,"Select One",null,0,0]
[null,null,null,"Select One",null,0,0]
[null,null,null,"Select One",null,0,0]
[null,null,null,"Select One",null,0,0]
[null,null,null,"Select One",null,0,0]
[null,null,null,"Select One",null,0,0]
[null,null,null,"Select One",null,0,0]
[null,null,null,"Select One",null,0,0]
[null,null,null,"Select One",null,0,0]
[null,null,null,"Select One",null,0,0]
[null,null,null,"Select One",null,0,0]
[null,null,null,"Select One",null,0,0]
[null,null,null,"Select One",null,0,0]
[null,null,null,"Select One",null,0,0]
[null,null,null,"Select One",null,0,0]
[null,null,null,"Select One",null,0,0]
[null,null,null,"Select One",null,0,0]
[null,null,null,"Select One",null,0,0]
[null,null,null,"Select One",null,0,0]
[null,null,null,"Select One",null,0,0]
[null,null,null,"Select One",null,0,0]
[null,null,null,"Select One",null,0,0]
[null,null,null,"Select One",null,0,0]
[null,null,null,"Select One",null,0,0]
[null,null,null,"Select One",null,0,0]
[null,null,null,"Select One",null,0,0]
[null,null,null,"Select One",null,0,0]
[null,null,null,"Select One",null,0,0]
[null,null,null,"Select One",null,0,0]
[null,null,null,"Select One",null,0,0]
[null,null,null,"Select One",null,0,0]
[null,null,null,"Select One",null,0,0]
[null,null,null,"Select One",null,0,0]
[null,null,null,"Select One",null,0,0]
[null,null,null,"Select One",null,0,0]
[null,null,null,"Select One",null,0,0]
[null,null,null,"Select One",null,0,0]
[null,null,null,"Select One",null,0,0]
[null,null,null,"Select One",null,0,0]
[null,null,null,"Select One",null,0,0]
[null,null,null,"Select One",null,0,0]
[null,null,null,"Select One",null,0,0]
[null,null,null,"Select One",null,0,0]
[null,null,null,"Select One",null,0,0]
[null,null,null,"Select One",null,{"$f":"IF(D97=\"Yes\",IFERROR($I$20/($D$15+$G$133),0), 0)","v":0},{"$f":"IFERROR(F97*E97, 0)","v":0}]
[null,null,null,"Select One",null,0,0]
[null,null,null,"Select One",null,0,0]
[null,null,null,"Select One",null,0,0]
[null,null,null,"Select One",null,0,0]
[null,null,null,"Select One",null,0,0]
[null,null,null,"Select One",null,0,0]
[null,null,null,"Select One",null,0,0]
[null,null,null,"Select One",null,0,0]
[null,null,null,"Select One",null,0,0]
[null,null,null,"Select One",null,0,0]
[null,null,null,"Select One",null,0,0]
[null,null,null,"Select One",null,0,0]
[null,null,null,"Select One",null,0,0]
[null,null,null,"Select One",null,0,0]
[null,null,null,"Select One",null,0,0]
[null,null,null,"Select One",null,0,0]
[null,null,null,"Select One",null,0,0]
[null,null,null,"Select One",null,0,0]
[null,null,null,"Select One",null,0,0]
[null,null,null,"Select One",null,0,0]
[null,null,null,"Select One",null,0,0]
[null,null,null,"Select One",null,0,0]
[null,null,null,"Select One",null,0,0]
[null,null,null,"Select One",null,0,0]
[null,null,null,"Select One",null,0,0]
[null,null,null,"Select One",null,0,0]
[null,null,null,"Select One",null,0,0]
[null,null,null,"Select One",null,0,0]
[null,null,null,"Select One",null,0,0]
[null,null,null,"Select One",null,0,0]
[null,null,null,"Select One",null,0,0]
[null,null,null,"Select One",null,0,0]
[null,null,null,"Select One",null,0,0]
[null,null,null,"Select One",null,0,0]
[null,null,null,null,null,null,{"$f":"SUM(G32:G131)","v":0}]
[null,null,null,null,null,"Title III FC 186 Total Private School Participation",{"$f":"SUMIF(D32:D131, \"Yes\", E32:E131)","v":0}]
[]
[null,null,"Step 3.3\nAnswer questions about Title III, Part A, Immigrant Children and Youth (Fund Code 186) services for private schools",null,null,null,null,null,null,null,"Title III, Part A: Immigrant Children and Youth"]
[]
[null,null,"  Has the district contacted all private schools located within district boundaries to inquire about  participation in  \n  Title III, Part A, Immigrant Children and Youth for their eligible students, with evidence of such outreach on file?  (select yes/no) ",null,null,null,null,null,null,null,"Select One"]
[]
[null,null,"1. What Title III, Part A services will be provided to immigrant students and youth in participating private schools? (Select primary service from dropdown menu; describe additional services in yellow box)."]
[null,null,"Select One"]
[null,null,"2. How will the district assess the impact of Title III, Part A services on participating immigrant students and youth in private schools? (Select primary source from dropdown menu; list additional sources in \"Other\")."]
[]
[null,null,"Select One"]

{"sheet":"4.  Fund Code 186 Narrative","index":4,"n_rows":23,"n_cols":12,"rows_kept":23,"cut":false,"hidden":false,"merged":[[10,1,10,3],[6,1,6,3],[7,1,7,7],[1,1,1,6],[2,1,2,3],[2,4,2,12],[4,1,4,12],[12,11,12,13],[11,1,11,5],[12,1,12,5],[12,7,12,8],[12,9,12,10],[11,7,11,10],[11,11,11,13],[14,2,14,5],[14,11,14,13],[15,2,15,5],[15,11,15,13],[16,2,16,5],[16,11,16,13],[18,11,18,13],[19,2,19,5],[19,11,19,13],[17,2,17,5],[17,11,17,13],[18,2,18,5],[22,11,22,13],[24,1,24,3],[25,1,31,3],[25,4,31,13],[20,2,20,5],[22,2,22,5],[20,11,20,13],[21,2,21,5],[21,11,21,13]]}
[]
[null,{"$f":"valDistrName & \" (\"&valorg4code&\")\"","v":"Org Name (Org )"}]
[null,"Title III, Part A",null,null,"Immigrant Children and Youth (Fund Code 186)"]
[]
[null,"  This grant must be used to pay for activities that provide enhanced instructional opportunities for immigrant children and youth, which may include: \n\n  (A) family literacy, parent and family outreach, and training activities designed to assist parents and families to become active participants in the education of their children; \n  (B) recruitment of, and support for, personnel, including teachers and paraprofessionals who have been specifically trained, or are being trained, to provide services to immigrant \n        children and youth; \n  (C) provision of tutorials, mentoring, and academic or career counseling for immigrant children and youth;\n  (D) identification, development, and acquisition of curricular materials, educational software, and technologies to be used in the program carried out with awarded funds; \n  (E) basic instructional services that are directly attributable to the presence of immigrant children and youth in the local educational agency involved, including the payment of \n        costs of providing additional classroom supplies, costs of transportation, or such other costs as are directly attributable to such additional basic instructional services; \n  (F) other instructional services that are designed to assist immigrant children and youth to achieve in elementary schools and secondary schools in the United States, \n        such as programs of introduction to the educational system and civics education; and\n  (G) activities, coordinated with community-based organizations, institutions of higher education, private sector entities, or other entities with expertise in working with immigrants, \n         to assist parents and families of immigrant children and youth by offering comprehensive community services. \n\nESSA defines \"immigrant child or youth\" as an individual who 1) is aged 3 to 21 years, 2) was not born in any state, and 3) has not been attending one or more schools in any one or more states for more than 3 full academic years.  For the purposes of this definition, a student's legal status is irrelevant, and the District of Columbia and Puerto Rico are considered states.\n"]
[]
[null,"STEP 4.1"]
[null,"Have you submitted and received approval for a Title III, Part A grant for FY19, either individually or as part of a consortium (Schedule A)?",null,null,null,null,null,null,"Select One"]
[]
[]
[null,"STEP 4.2"]
[null,"A",null,null,null,null,"B","C",null,null,null,"D"]
[null,"\nDescribe the activities funded by Title III , Part A, subgrant for immigrant Children and Youth and how they respond to your district's needs assessment \n(for reference, see the above, non-exclusive list of appropriate activities)",null,null,null,null,"Supplemental to federal, state, and local funding?\n","What data prompted this activity?\n(Select at least one source for each activity; report additional sources/explanation in \"Other\" box at row's end)",null,"What data will you use to determine progress and attainment of goals?\n(Select at least one source for each activity; report additional sources/explanation in \"Other\" box at row's end)",null,"If  you selected \"Other\" in Column C for any activity,  please describe data that you will use  here"]
[null,null,"A"]
[null,1,null,null,null,null,"Select One","Select One","Select One","Select One","Select One"]
[null,2,null,null,null,null,"Select One","Select One","Select One","Select One","Select One"]
[null,3,null,null,null,null,"Select One","Select One","Select One","Select One","Select One"]
[null,4,null,null,null,null,"Select One","Select One","Select One","Select One","Select One"]
[null,5,null,null,null,null,"Select One","Select One","Select One","Select One","Select One"]
[null,6,null,null,null,null,"Select One","Select One","Select One","Select One","Select One"]
[null,7,null,null,null,null,"Select One","Select One","Select One","Select One","Select One"]
[null,8,null,null,null,null,"Select One","Select One","Select One","Select One","Select One"]
[null,9,null,null,null,null,"Select One","Select One","Select One","Select One","Select One"]

{"sheet":"5. Fund Code 186 Budget","index":5,"n_rows":104,"n_cols":21,"rows_kept":104,"cut":false,"hidden":false,"merged":[[1,1,1,9],[2,20,2,21],[3,1,3,21],[5,2,6,4],[5,5,6,6],[6,7,6,8],[6,9,6,10],[14,2,14,10],[14,20,14,21],[16,3,16,6],[16,16,20,16],[16,20,16,21],[17,3,17,6],[17,20,17,21],[18,3,18,6],[18,20,18,21],[19,3,19,6],[25,20,25,21],[26,3,26,6],[26,20,26,21],[27,3,27,6],[27,20,27,21],[28,3,28,6],[28,20,28,21],[19,20,19,21],[20,20,20,21],[21,2,21,6],[22,20,22,21],[23,3,23,6],[23,16,28,16],[23,20,23,21],[24,3,24,6],[24,20,24,21],[25,3,25,6],[33,3,33,6],[33,20,33,21],[34,3,34,6],[34,20,34,21],[35,2,35,10],[36,2,36,6],[29,2,29,10],[29,20,29,21],[30,2,30,6],[31,3,31,6],[31,20,31,21],[32,3,32,6],[32,20,32,21],[37,16,41,16],[37,20,37,21],[38,3,38,6],[38,20,38,21],[39,3,39,6],[39,20,39,21],[40,3,40,6],[40,20,40,21],[41,3,41,6],[41,20,41,21],[42,2,42,10],[43,2,43,6],[44,3,44,10],[44,16,50,16],[44,20,45,21],[45,3,45,10],[46,3,46,10],[46,20,46,21],[47,3,47,10],[47,20,47,21],[54,20,54,21],[55,3,55,6],[55,20,55,21],[56,3,56,6],[56,20,56,21],[57,3,57,6],[57,20,57,21],[48,3,48,10],[48,20,48,21],[49,3,49,10],[49,20,49,21],[50,2,50,10],[52,16,58,16],[52,20,52,21],[53,3,53,6],[53,20,53,21],[54,3,54,6],[58,3,58,6],[58,20,58,21],[59,2,59,10],[61,16,66,16],[61,20,61,21],[62,3,62,9],[62,20,62,21],[63,3,63,9],[63,20,63,21],[64,3,64,9],[70,20,70,21],[71,3,71,9],[71,20,71,21],[72,3,72,9],[72,20,72,21],[73,2,73,10],[64,20,64,21],[65,3,65,9],[65,20,65,21],[66,3,66,5],[68,3,68,9],[68,16,73,16],[68,20,68,21],[69,3,69,9],[69,20,69,21],[70,3,70,9],[80,3,80,9],[80,20,80,21],[81,3,81,9],[81,20,81,21],[82,2,82,10],[84,8,84,9],[84,16,87,16],[85,8,85,9],[86,8,86,9],[75,16,82,16],[75,20,75,21],[76,3,76,9],[76,20,76,21],[77,3,77,9],[77,20,77,21],[78,3,78,9],[78,20,78,21],[79,3,79,9],[79,20,79,21],[95,15,95,16],[103,2,103,5],[89,3,89,10],[89,16,92,16],[89,20,89,21],[90,3,90,9],[90,20,90,21],[91,3,91,9],[91,20,91,21],[92,20,92,21]]}
[]
[null,{"$f":"valDistrName & \" (\"&valorg4code&\")\"","v":"Org Name (Org )"}]
[]
[null,"FY19 Title III, Part A (Fund Code 186) Budget Worksheet"]
[]
[null,null,"Allocation",null,null,{"$f":"valAllocation","v":"FC 186 Allocation"}]
[]
[]
[]
[null,null,null,null,null,null,null,null,null,{"$f":"valDistrName","v":"Org Name"}]
[null,null,null,null,null,null,null,null,{"$f":"valDistrName","v":"Org Name"}]
[]
[]
[]
[null,null,"Line Item Category: Select an option from the drop down menu.",null,null,null,null,null,null,null,null,null,"Amount",null,"Expenditures (whole numbers)",null,"Expense includes private school services",null,"Primary Function",null,"Comments"]
[]
[null,null,1,"ADMINISTRATOR SALARIES:",null,null,null,null,"# of staff","FTE","MTRS",null,null,null,"Amount",null,null,null,"Select from Drop Down List",null,"Budget Detail"]
[null,null,null,"Select One",null,null,null,null,null,null,null,false,{"$f":"IF(L18,O18,0)","v":0},null,null,null,null,null,"Select One"]
[null,null,null,"Select One",null,null,null,null,null,null,null,false,{"$f":"IF(L19,O19,0)","v":0},null,null,null,null,null,"Select One"]
[null,null,null,"Select One",null,null,null,null,null,null,null,false,{"$f":"IF(L20,O20,0)","v":0},null,null,null,null,null,"Select One"]
[]
[null,null,"SUB-TOTAL",null,null,null,null,null,{"$f":"SUM(I18:I20)","v":0},{"$f":"SUM(J18:J20)","v":0},null,null,{"$f":"SUM(M18:M20)","v":0},null,{"$f":"SUM(O18:O20)","v":0}]
[null,null,2,"INSTRUCTIONAL/PROF STAFF:",null,null,null,null,"# of staff","FTE","MTRS",null,null,null,"Amount",null,null,null,"Select from Drop Down List",null,"Budget Detail"]
[null,null,null,"Classroom Teachers  ",null,null,null,null,null,null,null,true,{"$f":"IF(L24, O24,0)","v":0},null,null,null,null,null,"Select One"]
[null,null,null,"Select One",null,null,null,null,null,null,null,false,{"$f":"IF(L25, O25,0)","v":0},null,null,null,null,null,"Select One"]
[null,null,null,"Select One",null,null,null,null,null,null,null,false,0,null,null,null,null,null,"Select One"]
[null,null,null,"Select One",null,null,null,null,null,null,null,false,0,null,null,null,null,null,"Select One"]
[null,null,null,"Select One",null,null,null,null,null,null,null,false,0,null,null,null,null,null,"Select One"]
[null,null,null,"Select One",null,null,null,null,null,null,null,false,{"$f":"IF(L29, O29,0)","v":0},null,null,null,null,null,"Select One"]
[]
[null,null,"SUB-TOTAL",null,null,null,null,null,{"$f":"SUM(I24:I29)","v":0},{"$f":"SUM(J24:J29)","v":0},null,null,{"$f":"SUM(M24:M29)","v":0},null,{"$f":"SUM(O24:O29)","v":0}]
[null,null,3,"SUPPORT STAFF SALARIES:",null,null,null,null,"# of staff","FTE","MTRS",null,null,null,"Amount",null,null,null,"Select from Drop Down List",null,"Budget Detail"]
[null,null,null,"Select One",null,null,null,null,null,null,null,false,{"$f":"IF(L33, O33, 0)","v":0},null,null,null,null,null,"Select One"]
[null,null,null,"Select One",null,null,null,null,null,null,null,false,{"$f":"IF(L34, O34, 0)","v":0},null,null,null,null,null,"Select One"]
[null,null,null,"Select One",null,null,null,null,null,null,null,false,0,null,null,null,null,null,"Select One"]
[]
[null,null,"SUB-TOTAL",null,null,null,null,null,{"$f":"SUM(I33:I35)","v":0},{"$f":"SUM(J33:J35)","v":0},null,null,{"$f":"SUM(M33:M35)","v":0},null,{"$f":"SUM(O33:O35)","v":0}]
[null,null,4,"STIPENDS:",null,null,null,"# of Staff","Rate","Rate Type","MTRS",null,null,null,"Amount",null,null,null,"Select from Drop Down List",null,"Budget Detail"]
[null,null,null,"Select One",null,null,null,null,null,null,null,false,{"$f":"IF(L39, O39, 0)","v":0},null,null,null,null,null,"Select One"]
[null,null,null,"Select One",null,null,null,null,null,null,null,false,{"$f":"IF(L40, O40, 0)","v":0},null,null,null,null,null,"Select One"]
[null,null,null,"Select One",null,null,null,null,null,null,null,false,0,null,null,null,null,null,"Select One"]
[null,null,null,"Select One",null,null,null,null,null,null,null,false,0,null,null,null,null,null,"Select One"]
[]
[null,null,"SUB-TOTAL",null,null,null,null,null,null,null,null,null,{"$f":"SUM(M39:M42)","v":0},null,{"$f":"SUM(O39:O42)","v":0}]
[null,null,5,"FRINGE BENEFITS:",null,null,null,null,null,null,null,null,null,null,"Amount",null,null,null,"Brief Description",null,"Budget Detail"]
[null,null,null,"5a  MTRS (automatically calculated if MTRS box is checked)  ",null,null,null,null,null,null,null,null,null,null,{"$f":"ROUND((SUM(M44,M37,M31,M22))*0.09,0)","v":0}]
[null,null,null,"5b  Other",null,null,null,null,null,null,null,null,null,null,{"$f":"SUM(O48:O50)","v":0}]
[null,null,null,"Health Insurance"]
[null,null,null,"Other Retirement Systems"]
[null,null,null,"Federal Insurance Contributions Act (FICA)"]
[]
[null,null,"SUB-TOTAL",null,null,null,null,null,null,null,null,null,null,null,{"$f":"SUM(O46:O47)","v":0}]
[null,null,6,"CONTRACTUAL SERVICES:",null,null,null,null,"Rate","Rate Type",null,null,null,null,"Amount",null,null,null,"Select from Drop Down List",null,"Budget Detail"]
[null,null,null,"Select One",null,null,null,null,null,null,null,null,null,null,null,null,null,null,"Select One"]
[null,null,null,"Select One",null,null,null,null,null,null,null,null,null,null,null,null,null,null,"Select One"]
[null,null,null,"Select One",null,null,null,null,null,null,null,null,null,null,null,null,null,null,"Select One"]
[null,null,null,"Select One",null,null,null,null,null,null,null,null,null,null,null,null,null,null,"Select One"]
[null,null,null,"Select One",null,null,null,null,null,null,null,null,null,null,null,null,null,null,"Select One"]
[null,null,null,"Select One",null,null,null,null,null,null,null,null,null,null,null,null,null,null,"Select One"]
[]
[null,null,"SUB-TOTAL",null,null,null,null,null,null,null,null,null,null,null,{"$f":"SUM(O54:O59)","v":0}]
[null,null,7,"SUPPLIES AND MATERIALS:",null,null,null,null,null,null,null,null,null,null,"Amount",null,null,null,"Select from Drop Down List",null,"Budget Detail"]
[null,null,null,"Select One",null,null,null,null,null,null,null,null,null,null,null,null,null,null,"Select One"]
[null,null,null,"Select One",null,null,null,null,null,null,null,null,null,null,null,null,null,null,"Select One"]
[null,null,null,"Select One",null,null,null,null,null,null,null,null,null,null,null,null,null,null,"Select One"]
[null,null,null,"Select One",null,null,null,null,null,null,null,null,null,null,null,null,null,null,"Select One"]
[]
[null,null,"SUB-TOTAL",null,null,null,null,null,null,null,null,null,null,null,{"$f":"SUM(O63:O66)","v":0}]
[null,null,8,"TRAVEL:  (mileage, conference registration, courses, hotels, etc.)",null,null,null,null,null,null,null,null,null,null,"Amount",null,null,null,"Select from Drop Down List",null,"Budget Detail"]
[null,null,null,"Select One",null,null,null,null,null,null,null,null,null,null,null,null,null,null,"Select One"]
[null,null,null,"Select One",null,null,null,null,null,null,null,null,null,null,null,null,null,null,"Select One"]
[null,null,null,"Select One",null,null,null,null,null,null,null,null,null,null,null,null,null,null,"Select One"]
[null,null,null,"Select One",null,null,null,null,null,null,null,null,null,null,null,null,null,null,"Select One"]
[]
[null,null,"SUB-TOTAL",null,null,null,null,null,null,null,null,null,null,null,{"$f":"SUM(O70:O73)","v":0}]
[null,null,9,"OTHER COSTS:",null,null,null,null,null,null,null,null,null,null,"Amount",null,null,null,"Select from Drop Down List",null,"Budget Detail"]
[null,null,null,"Select One",null,null,null,null,null,null,null,null,null,null,null,null,null,null,"Select One"]
[null,null,null,"Select One",null,null,null,null,null,null,null,null,null,null,null,null,null,null,"Select One"]
[null,null,null,"Select One",null,null,null,null,null,null,null,null,null,null,null,null,null,null,"Select One"]
[null,null,null,"Select One",null,null,null,null,null,null,null,null,null,null,null,null,null,null,"Select One"]
[null,null,null,"Select One",null,null,null,null,null,null,null,null,null,null,null,null,null,null,"Select One"]
[null,null,null,"Select One",null,null,null,null,null,null,null,null,null,null,null,null,null,null,"Select One"]
[]
[null,null,"SUB-TOTAL",null,null,null,null,null,null,null,null,null,null,null,{"$f":"SUM(O77:O82)","v":0}]
[null,null,null,null,null,null,"(a) rate (%)",null,"(b) allocation less indirect"]
[null,null,10,"INDIRECT COSTS *",null,null,null,null,{"$f":"IF(G86=\"\",\"\", F6/(1+G86))","v":""}]
[null,null,null,"   maximum allowed",null,null," (a x b)",null,{"$f":"IFERROR(+I86*G86,\"\")","v":""}]
[]
[]
[null,null,11,"EQUIPMENT:\nOnly list items costing $5,000+ per unit and having a useful life more than 1 year",null,null,null,null,null,null,null,null,null,null,"Amount",null,null,null,"Select from Drop Down List",null,"Budget Detail"]
[null,null,null,null,null,null,null,null,null,null,null,null,null,null,null,null,null,null,"Select One"]
[null,null,null,null,null,null,null,null,null,null,null,null,null,null,null,null,null,null,"Select One"]
[]
[null,null,"SUB-TOTAL",null,null,null,null,null,null,null,null,null,null,null,{"$f":"SUM(O91:O92)","v":0}]
[]
[null,null,"TOTAL FUNDS REQUESTED ",null,null,null,null,null,null,null,null,null,null,null,{"$f":"SUM(O94,O86,O84,O75,O68,O61,O52,O44,O37,O31,O22)","v":0}]
[]
[]
[]
[null,null,"* Indirect costs must be consistent with the rate established by the Office of School Finance.  Districts are allowed to take less than the maximum.  In calculating the indirect cost allowable for a particular grant, note that indirect"]
[null,null,"costs cannot be charged on either capital expenditures or on indirect costs themselves.  To arrive at the allowable amount one cannot simply multiply a total entitlement by the indirect rate.  The decision to recover "]
[null,null,"indirect costs using these established rates is a local option.  If indirect costs are recovered, they shall be returned to the general fund of the city or town in  accordance with G.L. Chapter 44, Section 53.  In the case"]
[null,null,"of regional schools, indirect costs shall be returned to the regional school general fund. "]
[null,null,"www.doe.mass.edu/Grants/essential.html"]

{"sheet":"dataLookupValues","index":6,"n_rows":94,"n_cols":6,"rows_kept":94,"cut":false,"hidden":true,"merged":[[69,0,69,1],[77,0,77,1],[15,0,15,1],[20,0,20,1],[34,0,34,1],[41,0,41,1],[48,0,48,1],[59,0,59,1]]}
["Workbook Information"]
["Fiscal Year","FY18","Fundcode:",186]
["Title full name","III Language Acquisition"]
["Title abbreviated","III"]
["District Information",null,null,null,"Immigrant Count",{"$f":"VLOOKUP(valDistr,dataDistrictList!A2:R43,18,FALSE)","v":{"$error":"#N/A"}}]
["District value",1,null,null,"Liasons"]
["District Name:",{"$f":"VLOOKUP(valDistr,dataDistr,3,FALSE)","v":"Org Name"},"district code",{"$f":"LEFT(VLOOKUP(valDistr,dataDistr,2,FALSE),4)","v":"Org "},"Name",{"$f":"VLOOKUP(valDistr,dataDistr,12,FALSE)","v":"Liaison's Name"}]
["Address1",{"$f":"VLOOKUP(valDistr,dataDistr,7,FALSE)","v":"Address 1"},null,null,"Phone",{"$f":"VLOOKUP(valDistr,dataDistr,13,FALSE)","v":"Liaison's Number"}]
["Address2",{"$f":"IF(VLOOKUP(valDistr,dataDistr,8,FALSE)=0,\"\",VLOOKUP(valDistr,dataDistr,8,FALSE))","v":"Address 2"},null,null,"email",{"$f":"VLOOKUP(valDistr,dataDistr,14,FALSE)","v":"Liaison's Email"}]
["City, State, ZIP",{"$f":"VLOOKUP(valDistr,dataDistr,9,FALSE)&\", \"&VLOOKUP(valDistr,dataDistr,10,FALSE)&\" \"&VLOOKUP(valDistr,dataDistr,11,FALSE)","v":"Town, State Zip"},null,null,"Allocation",{"$f":"VLOOKUP(valDistr,dataDistr,17,FALSE)","v":"FC 186 Allocation"}]
[]
["Common Values"]
["Budget Workbook"]
["LINE VALUES"]
[]
[]
[]
[]
[]
[]
[]
[]
[]
[]
[]
[]
[]
[]
[]
[]
[]
[]
[]
[]
[]
[]
[]
[]
[]
[]
[]
[]
[]
[]
[]
[]
[]
[]
[]
[]
[]
[]
[]
[]
[]
[]
[]
[]
[]
[]
[]
[]
[]
[]
[]
[]
[]
[]
[]
[]
[]
[]
[]
[]
[]
[]
[]
[]
[]
[]
[]
[]
[]
[]
[]
[]
[]
[]
[]
[]
[]
[]
["Customized values"]
["PRIMARY FUNCTIONS"]

{"sheet":"dataDistrictList","index":7,"n_rows":17,"n_cols":18,"rows_kept":17,"cut":false,"hidden":true,"merged":[]}
[1,"Org Code","Org Name","Org Type","Function","Contact Name","Address 1","Address 2","Town","State","Zip","Liaison's Name","Liaison's Number","Liaison's Email","March EL Count (18c)","March Enrolled Count","FC 186 Allocation","Oct18 Immigrant Count"]
[2,"00350000","Boston","Public School District","Superintendent","Laura Perille","2300 Washington Street",null,"Roxbury","MA","02119","Julia Foodman","781-338-3577","jfoodman@doe.mass.edu",15445,49775,171179,4205]
[3,"00440000","Brockton","Public School District","Superintendent","Kathleen Smith","43 Crescent Street",null,"Brockton","MA","02301","Sue Mazzarella","781-338-3587","smazzarella@doe.mass.edu",4161,16527,81992,1357]
[4,"00490000","Cambridge","Public School District","Superintendent","Kenneth Salim","159 Thorndike Street",null,"Cambridge","MA","02141","Alex Lilley","781-338-6212","alilley@doe.mass.edu",null,null,24377,533]
[5,"00930000","Everett","Public School District","Superintendent","Frederick Foresteire","121 Vine Street",null,"Everett","MA","02149","Ellie Rounds-Bloom","781-338-3128","erounds-bloom@doe.mass.edu",1470,6567,69607,865]
[6,"00950000","Fall River","Public School District","Superintendent","Matthew Malone","417 Rock Street",null,"Fall River","MA","02720","Sue Mazzarella","781-338-3587","smazzarella@doe.mass.edu",1671,9902,138129,426]
[7,"01000000","Framingham","Public School District","Superintendent","Robert Tremblay","73 Mt. Wayte Avenue","Suite 5","Framingham","MA","01702","Aneesh Sahni","781-338-3532","aneesh.sahni@doe.mass.edu",null,null,20209,455]
[8,"01490000","Lawrence","Public School District","Superintendent","Mary Bergeron","237 Essex Street",null,"Lawrence","MA","01840","Russ Fleming","781-338-6529","RFleming@doe.mass.edu",4786,13587,107413,2210]
[9,"01600000","Lowell","Public School District","Superintendent","Salah Khelfaoui","155 Merrimack Street",null,"Lowell","MA","01852","Nancy Labrie","781-338-3536","nlabrie@doe.mass.edu",3606,14004,165088,1055]
[10,"01630000","Lynn","Public School District","Superintendent","Catherine Latham","100 Bennett St",null,"Lynn","MA","01905","Aneesh Sahni","781-338-3532","aneesh.sahni@doe.mass.edu",3591,15385,110867,1456]
[11,"01650000","Malden","Public School District","Superintendent","John Oteri","77 Salem Street",null,"Malden","MA","02148","Julia Foodman","781-338-3577","jfoodman@doe.mass.edu",1387,6272,63114,741]
[12,"01700000","Marlborough","Public School District","Superintendent","Maureen Greulich","17 Washington Street",null,"Marlborough","MA","01752","Ellie Rounds-Bloom","781-338-3128","erounds-bloom@doe.mass.edu",1069,4446,89694,368]
[13,"01850000","Milford","Public School District","Superintendent","Kevin Mcintyre","31 West Fountain Street",null,"Milford","MA","01757","Julia Foodman","781-338-3577","jfoodman@doe.mass.edu",null,null,67043,297]
[14,"02010000","New Bedford","Public School District","Superintendent","Pia Durkin","455 County Street","C/O Paul Rodrigues Administration Bldg.","New Bedford","MA","02740","Beth O'Connell","781-338-3132","EO'Connell@doe.mass.edu",3645,12116,79902,789]
[15,"02430000","Quincy","Public School District","Superintendent","Richard Decristofaro","34 Coddington Street",null,"Quincy","MA","02169","Nancy Labrie","781-338-3536","nlabrie@doe.mass.edu",null,null,64143,752]
[16,"03080000","Waltham","Public School District","Superintendent","Drew Echelson","617 Lexington Street",null,"Waltham","MA","02452","Sue Mazzarella","781-338-3587","smazzarella@doe.mass.edu",1260,5447,30361,509]
[17,"03210000","Westborough","Public School District","Superintendent","Amber Bock","45 West Main Street",null,"Westborough","MA","01581","Sue Mazzarella","781-338-3587","smazzarella@doe.mass.edu",null,null,20209,333]

{"sheet":"Dropdowns","index":8,"n_rows":135,"n_cols":12,"rows_kept":135,"cut":false,"hidden":true,"merged":[]}
["Budget Worksheet Dropdowns","Evidence/Data Sources","YesNo","Means of Identifying Els","Title IVA Categories","Title I School Types","Title I Low Income Methods","Private School Services Low Income Methods","Title IIA Prof. Growth ","Budget Pages:  Flexing","Private School Services:  Primary Functions","Private School DataList"]
["Primary Functions:  Title I","Select One","Select One","Select One","Access to Well-Rounded Education","SW","Select One","Select One","Select One","Flexed Funds II,Part A","Title I","Select One"]
["Select One","ACCESS data","Yes","Using initial assessment materials purchased by TIII identified by private school personnel","Safe and Healthy Schools","TA","March Eco Dis","Eco Dis","Recruiting diverse educators","Select, if applicable","Select One","Attendance data (educators)"]
["Instruction-School day (public, K-12) ","Attendance data (educators)","No","Using initial assessment materials purchased by TIII identified by LEA trained personnel","Effective Use of Technology","NT","March Eco Dis x 1.6","Free and Reduced Price Lunch/Meals Status","Building a principal pipeline","Title I, Part A","Instruction-School day (public, K-12) ","Attendance data (students)"]
["Instruction - Extended day/year (public, K-12) ","Attendance data (students)",null,"Identified by LEA by consultation agreement",null,"CL","Other ","Other","Strategically placing and/or screening  student teachers","Title III, Part A","Instruction - Extended day/year (public, K-12) ","College application, enrollment, and  completion data"]
["High quality PD","CHART reports ","YesNoNA","Previously identified for services",null,null,1,null,"Training supervising practitioners","Title IV, Part A","High quality PD","Discipline data"]
["Data collection/management","College application, enrollment, and  completion data","Select One","Previously identified student not yet proficient in English ",null,null,null,null,"Other",null,"Instructional technology","School-based assessments"]
["Homeless services","DART reports","Yes","Other",null,null,"Methods of qualifying T1 Schools",null,"None of the above","Flexed Funds IV,Part A","Parent, family and community engagement","School-sponsored research"]
["Instructional technology","Discipline data","No",null,null,null,"Select One",null,null,"Select, if applicable","Social and emotional learning","Educator evaluation data"]
["Neglected or delinquent services","District assessments","N/A",null,null,null,"District-wide low income percentage",null,"Select One","Title I, Part A","Other","Learning walks/teacher observations"]
["Parent, family and community engagement","District-sponsored research",null,null,null,null,"Grade span grouping and district-wide percentage",null,"Training mentors","Title II, Part A",null,"Peer-reviewed research"]
["Planning and evaluation","Educator evaluation data",null,null,null,null,"35% rule",null,"New administrator support","Title III, Part A","Title IIA","Student report cards"]
["Pre-school activities","Early Warning Indicator System (EWIS) data",null,null,null,null,"Grade span grouping and 35% rule",null,"Supports for educators in Years 2 and 3",null,"Select One","Surveys (student)"]
["Program administration","Learning walks/teacher observations",null,null,null,null,"Grade span grouping and group-wide percentage",null,"Cycles of observation and feedback",null,"Educator effectiveness PD","Survey (educator)"]
["Social and emotional learning","MCAS data",null,null,null,null,"One school per grade span (eg. K-5, 6-8, 9-12)",null,"Cohort-based programming",null,"Social and emotional learning PD","Surveys (other)"]
["Student transportation","Peer-reviewed research",null,null,null,null,"Total Enrollment of less than 1000 students",null,"Retaining educators of color",null,"School climate PD","Workforce outcomes data"]
["Other","RADAR reports ",null,null,null,null,1,null,"Other",null,"Inclusive practice PD","Other"]
[null,"Student report cards",null,null,null,null,null,null,"None of the above",null,"Other PD","None"]
["Primary Functions:  Title IIA","School accountability data"]
["Select One","Student Learning Experience reports",null,null,null,null,null,null,"Select One",null,"Title III Dropdown Private Schools"]
["Induction and mentoring ","Survey  - School Climate (student)",null,null,null,null,null,null,"Implementing the new student learning indicator",null,"Select One"]
["Instructional coaches","Survey - School Climate (educator)",null,null,null,null,null,null,"Incorporating staff/student feedback",null,"Instruction Extended day/year"]
["Curriculum Frameworks implementation ","Surveys - Other",null,null,null,null,null,null,"Calibrating the judgments and ratings of evaluators",null,"Supplemental literacy materials"]
["Educator effectiveness PD","Workforce outcomes data",null,null,null,null,null,null,"Other",null,"Assessment/screening materials"]
["Social and emotional learning PD","Other",null,null,null,null,null,null,"None of the above",null,"Professional development"]
["School climate PD","None",null,null,null,null,null,null,null,null,"Parent/Family Engagement for currently served TIII ELs"]
["Inclusive practice PD",null,null,null,null,null,null,null,"Select One",null,"Software for supplemental services during TIII extended day program"]
["Class size reduction",null,null,null,null,null,null,null,"Coaching supports to educators"]
["Program administration","Evidence/Data Sources TIVA",null,null,null,null,null,null,"Teacher Led PD",null,"Title VIA Dropdown Private Schools"]
["Other","Select One",null,null,null,null,null,null,"Curriculum-specific PD",null,"Select One"]
[null,"ACCESS data",null,null,null,null,null,null,"PD on data/ assessment",null,"Academic supports and personalized learning"]
["Primary Functions: Title III","Attendance data (educators)",null,null,null,null,null,null,"Other",null,"Arts education activities"]
["Select One","Attendance data (students)",null,null,null,null,null,null,"None of the above",null,"College and career readiness activities"]
["Instruction Extended day/year","CHART reports ",null,null,null,null,null,null,null,null,"Curriculum revision, training and implementation"]
["Supplemental literacy materials","College application, enrollment, and  completion data",null,null,null,null,null,null,"Select One",null,"Inclusion-related activities"]
["Assessment/screening materials","DART reports ",null,null,null,null,null,null,"Providing differentiated roles and opportunities",null,"School safety and student wellness activities"]
["Professional development","Discipline data",null,null,null,null,null,null,"Facilitating recognition programs and/or events",null,"Service learning, civics and community engagement activities"]
["Parent/Family Engagement for currently served TIII ELs","District assessments",null,null,null,null,null,null,"Other",null,"Social emotional learning activities"]
["Software for supplemental services during TIII extended day program","District-sponsored research",null,null,null,null,null,null,"None of the above",null,"Strengthening school climate and culture"]
["Other","Educator evaluation data",null,null,null,null,null,null,null,null,"Technology integration activities"]
[null,"Learning walks/teacher observations",null,null,null,null,null,null,null,null,"Other"]
["Primary Functions:  Title IV","MCAS data"]
["Select One","Peer-reviewed research"]
["Academic supports and personalized learning","RADAR reports "]
["Arts education activities","Referrals"]
["College and career readiness activities","Student Learning Experience reports"]
["Curriculum revision, training and implementation","Student report cards"]
["Inclusion-related activities","Survey  - School Climate (student)"]
["School safety and student wellness activities","Survey - School Climate (educator)"]
["Service learning, civics and community engagement activities","Survey -- Youth Risk"]
["Social emotional learning activities","Surveys -- Other"]
["Strengthening school climate and culture","Workforce outcomes data"]
["Technology integration activities","Other"]
["Other","None"]
[]
["Budget Categories"]
["Administrator Salaries"]
["Select One"]
["Grant Program Manager/Coordinator "]
["Other "]
["InstructionalProf Staff Salaries"]
["Select One"]
["Classroom Teachers  "]
["Instructional Coaches "]
["Certified Specialist Teachers (providing individualized instruction)  "]
["Instructional Coordinators and Team Leaders  "]
["Medical / Therapeutic Services "]
["Librarians and Media Center Directors "]
["Professional Development Directors/Coordinators  "]
["Guidance or School Adjustment Counselors, Social Workers  "]
["Psychological Service Providers "]
["School Physicians and School Nurses  "]
["Other  "]
["Support Staff Salaries"]
["Select One"]
["Non-Clerical Paraprofessionals/Instructional Assistants "]
["Secretary/Bookkeeper/Clerical Support  "]
["Parent Liaisons"]
[" Other "]
["Stipends"]
["Select One"]
["Teacher/ Instructional Staff Professional Days"]
["Administrators "]
["Other "]
["Support Staff"]
["Travel"]
["Select One"]
["Grant Program Manager/Coordinator (supervisory)"]
["Certified Classroom Teachers (providing group instruction) "]
["Certified Specialist Teachers (providing individualized instruction)"]
["Non-Clerical Paraprofessionals/Instructional Assistants"]
["Other "]
["Contractual Services"]
["Select One"]
["Instructional Services "]
["Consultants/Professional  Development for Teachers & Support Staff "]
["Substitutes (long and/or short term)"]
["Non-Clerical Paraprofessionals/Instructional Assistants"]
["Secretary/Bookkeeper/Clerical Support "]
["Contracted Service Providers -- Private School Services "]
["Contracted Services Providers -- Other Student Services "]
["Other "]
["Supplies and Materials"]
["Select One"]
["Textbooks and Related Software/Media/Materials "]
["Instructional Technology"]
["Other Instructional Materials (non-testing/assessment)"]
["Testing and Assessment Materials"]
["General Classroom Supplies "]
["Office Supplies  "]
["Other "]
["Other costs"]
["Select One"]
["Memberships/Subscriptions"]
["Advertising  "]
["Student Transportation Services "]
[" Rental/Lease of Equipment"]
["Maintenance of Equipment"]
["Maintenance of Technology "]
["Tuition to Non-Public Schools "]
["Tuition to Out-of-State Schools "]
["Tuition to Collaboratives"]
["Rental Lease of Buildings  "]
["Utility Services/ Telephone "]
["Other  "]
[]
["Select One"]
["Parent and family outreach and engagement"]
["Recruitment and support for specialized personnel "]
["Instructional Technology"]
["Additional instructional services - Private"]
["Additional instructional services - Public"]
["Orientation/transitional services and instruction "]
["Coordinated services with community-based partners"]
["Other"]